bitfinex-derivatives/quotes_BTCF0:USTF0_20250629
["timestamp","ask_amount","ask_price","bid_price","bid_amount"]
[1751237570261,0.80691203,108210.0,108200.0,0.09556979]
[1751237570469,0.80691203,108210.0,108200.0,0.04065253]
[1751237577363,0.80691203,108210.0,108190.0,0.05584152]
[1751237577364,0.1478323,108200.0,108190.0,0.05584152]
[1751237577562,1.56356573,108200.0,108190.0,0.00092426]
[1751237577764,0.1478459,108190.0,108180.0,0.00884152]
[1751237578062,0.88215466,108190.0,108180.0,0.00884152]
[1751237578455,0.80803933,108190.0,108180.0,0.00884152]
[1751237578869,0.1478596,108180.0,108170.0,1.1295779]
[1751237580565,0.1488596,108180.0,108170.0,1.1395779]
[1751237580768,0.1488596,108180.0,108170.0,1.1540242]
[1751237580970,0.1488596,108180.0,108170.0,1.1395779]
[1751237581764,0.001,108180.0,108170.0,1.1395779]
[1751237581970,0.1498596,108180.0,108170.0,1.5073779]
[1751237582960,0.002,108180.0,108170.0,1.5073779]
[1751237583170,0.002,108180.0,108170.0,1.58051756]
[1751237583662,0.1498596,108180.0,108170.0,1.58051756]
[1751237588573,0.1498595,108180.0,108170.0,1.58051756]
[1751237589974,0.1498595,108180.0,108170.0,1.58033605]
[1751237590174,0.1498595,108180.0,108170.0,1.34047472]
[1751237590371,0.1498595,108180.0,108170.0,1.54336815]
[1751237593378,0.1498595,108180.0,108170.0,1.47022849]
[1751237597682,0.002,108180.0,108170.0,1.47022849]
[1751237599773,0.002,108180.0,108170.0,1.54336815]
[1751237601082,0.002,108180.0,108170.0,1.70664815]
[1751237604685,0.1498596,108180.0,108170.0,1.70664815]
[1751237605188,0.002,108180.0,108170.0,1.70664815]
[1751237608489,0.002,108180.0,108170.0,1.50375472]
[1751237608694,0.002,108180.0,108170.0,1.70664815]
[1751237612091,0.002,108180.0,108170.0,1.72535063]
[1751237613188,0.002,108180.0,108170.0,1.5224572]
[1751237613391,0.002,108180.0,108170.0,1.72535063]
[1751237621706,0.002,108180.0,108170.0,1.5224572]
[1751237621892,0.002,108180.0,108170.0,1.72535063]
[1751237624794,0.1498595,108180.0,108170.0,1.72535063]
[1751237625792,0.1498595,108180.0,108170.0,1.10063063]
[1751237626097,0.1498595,108180.0,108170.0,1.72251063]
[1751237626298,0.1820595,108180.0,108170.0,1.72251063]
[1751237627501,0.0342,108180.0,108170.0,1.72251063]
[1751237627802,0.1820596,108180.0,108170.0,1.72251063]
[1751237628504,0.1820596,108180.0,108170.0,1.5196172]
[1751237628795,0.1820596,108180.0,108170.0,0.6659898]
[1751237629003,0.41755303,108180.0,108170.0,1.1065233]
[1751237629195,0.44825303,108180.0,108170.0,0.46655042]
[1751237629395,0.99394103,108180.0,108170.0,0.07208945]
[1751237629596,0.80905303,108180.0,108170.0,0.08599117]
[1751237630197,0.80905303,108180.0,108170.0,0.12270714]
[1751237630398,0.80905303,108180.0,108170.0,0.06761769]
[1751237630608,0.80905303,108180.0,108170.0,0.06762663]
[1751237630793,0.80805303,108180.0,108170.0,0.05762663]
[1751237630997,0.80805303,108180.0,108170.0,0.20649993]
[1751237631198,0.80805303,108180.0,108170.0,0.05862663]
[1751237631406,0.81715748,108180.0,108170.0,0.05862663]
[1751237632301,0.81715748,108180.0,108170.0,0.05162663]
[1751237632302,0.81615748,108180.0,108170.0,0.05162663]
[1751237632604,0.81615748,108180.0,108170.0,0.05362663]
[1751237633397,0.81615748,108180.0,108170.0,0.05262663]
[1751237635204,0.81615748,108180.0,108170.0,0.03871597]
[1751237638607,0.61326405,108180.0,108170.0,0.03871597]
[1751237638807,0.81615748,108180.0,108170.0,0.03871597]
[1751237639705,0.80705303,108180.0,108170.0,0.18658927]
[1751237639905,0.6041596,108180.0,108170.0,0.18658927]
[1751237640405,0.6041596,108180.0,108170.0,0.03871597]
[1751237641007,0.80705303,108180.0,108170.0,0.03871597]
[1751237641803,1.19483446,108180.0,108170.0,0.002]
[1751237642005,0.1478732,108170.0,108160.0,0.03764048]
[1751237642309,0.78894985,108170.0,108160.0,0.03764048]
[1751237642503,0.78894985,108170.0,108160.0,0.05152755]
[1751237643504,0.78894985,108170.0,108160.0,0.01481158]
[1751237643701,2.16295787,108170.0,108140.0,0.07346926]
[1751237644007,1.59217203,108160.0,108150.0,0.03667209]
[1751237644206,1.95297203,108160.0,108150.0,0.03667209]
[1751237644401,2.23529958,108160.0,108150.0,0.03667209]
[1751237644807,0.9673586,108160.0,108150.0,0.38746612]
[1751237645109,0.9673586,108160.0,108150.0,0.35079403]
[1751237645310,0.9673586,108160.0,108150.0,0.1479006]
[1751237646409,0.9683586,108160.0,108150.0,0.1479006]
[1751237646908,1.0009586,108160.0,108150.0,0.1479006]
[1751237647215,0.1479006,108150.0,108140.0,0.52473013]
[1751237647411,0.16442185,108150.0,108140.0,0.52473013]
[1751237647613,0.16442185,108150.0,108140.0,0.3218367]
[1751237647915,0.16442185,108150.0,108140.0,0.52473013]
[1751237648513,0.16442185,108150.0,108140.0,0.48775173]
[1751237648710,0.16442185,108150.0,108140.0,0.48875173]
[1751237649218,0.16442185,108150.0,108140.0,0.84955173]
[1751237649513,0.16442185,108150.0,108140.0,0.85155173]
[1751237650918,0.01652125,108150.0,108140.0,1.02900674]
[1751237651110,0.01652125,108150.0,108140.0,1.23190017]
[1751237651919,0.01652125,108150.0,108140.0,1.02900674]
[1751237652216,0.01652125,108150.0,108140.0,1.23190017]
[1751237652513,0.01652125,108150.0,108140.0,1.30536943]
[1751237653112,0.23830602,108170.0,108160.0,0.1478869]
[1751237653319,0.23830602,108170.0,108160.0,1.33162033]
[1751237653520,0.23830602,108170.0,108160.0,1.39452033]
[1751237653719,0.16436662,108170.0,108160.0,1.39452033]
[1751237654420,0.16636662,108170.0,108160.0,1.39452033]
[1751237655019,0.16836662,108170.0,108160.0,1.39452033]
[1751237655221,0.16836662,108170.0,108160.0,0.78945355]
[1751237655422,0.16836662,108170.0,108160.0,1.40921355]
[1751237656221,0.16636662,108170.0,108160.0,1.40921355]
[1751237656416,0.01848322,108170.0,108160.0,1.40921355]
[1751237656623,0.01648322,108170.0,108160.0,1.40921355]
[1751237659720,0.16435652,108170.0,108160.0,1.40921355]
[1751237660627,0.01648322,108170.0,108160.0,1.40921355]
[1751237661429,0.16435642,108170.0,108160.0,1.40921355]
[1751237662731,0.01648322,108170.0,108160.0,1.40921355]
[1751237663131,0.16435652,108170.0,108160.0,1.40921355]
[1751237663330,0.01648322,108170.0,108160.0,1.40921355]
[1751237663826,0.01648322,108170.0,108160.0,1.46421157]
[1751237664224,0.01648322,108170.0,108160.0,1.82701157]
[1751237664429,0.2918473,108190.0,108180.0,0.1478596]
[1751237664726,0.31307973,108190.0,108180.0,0.96963303]
[1751237665032,0.31307973,108190.0,108180.0,1.03113303]
[1751237665224,0.2217825,108190.0,108180.0,1.03113303]
[1751237665825,0.1498565,108190.0,108180.0,1.40729463]
[1751237666242,0.1518565,108190.0,108180.0,1.2044012]
[1751237666527,0.1518565,108190.0,108180.0,1.41661006]
[1751237667538,0.004,108190.0,108180.0,1.61950349]
[1751237667832,0.1518459,108190.0,108180.0,1.41661006]
[1751237668028,0.004,108190.0,108180.0,1.61950349]
[1751237669022,0.01777437,108200.0,108190.0,0.1478459]
[1751237669230,0.01777437,108200.0,108190.0,0.96891933]
[1751237670236,0.02177437,108200.0,108190.0,0.96891933]
[1751237671126,0.02177437,108200.0,108190.0,1.02391735]
[1751237671326,0.02177437,108200.0,108190.0,0.96891933]
[1751237671533,0.02177437,108200.0,108190.0,1.02391735]
[1751237673337,0.02177437,108200.0,108190.0,1.20876534]
[1751237673540,0.02377437,108200.0,108190.0,1.20876534]
[1751237673735,0.007,108200.0,108190.0,1.22723658]
[1751237673936,0.001,108230.0,108220.0,0.1478049]
[1751237674238,0.1487913,108230.0,108220.0,1.06225833]
[1751237674431,0.1487913,108230.0,108220.0,1.42305833]
[1751237674638,0.0323,108230.0,108220.0,1.42305833]
[1751237674937,0.1800913,108230.0,108220.0,1.2200849]
[1751237675235,0.1840913,108230.0,108220.0,1.42297833]
[1751237675438,0.0363,108230.0,108220.0,1.42297833]
[1751237675840,0.1890913,108230.0,108220.0,1.42297833]
[1751237676038,0.1890913,108230.0,108220.0,1.58381833]
[1751237676240,0.1890913,108230.0,108220.0,1.3809249]
[1751237676439,0.1890913,108230.0,108220.0,1.58381833]
[1751237677136,0.0413,108230.0,108220.0,1.58381833]
[1751237677336,0.1890913,108230.0,108220.0,1.58381833]
[1751237678942,0.1890913,108230.0,108220.0,1.2200849]
[1751237679131,0.1890913,108230.0,108220.0,1.42297833]
[1751237681343,0.1890913,108230.0,108220.0,1.58381833]
[1751237681642,0.01,108230.0,108220.0,1.58381833]
[1751237683234,0.01,108230.0,108220.0,1.59312768]
[1751237684642,0.006,108230.0,108220.0,1.59312768]
[1751237685035,0.001,108230.0,108220.0,1.59412768]
[1751237685741,0.61843924,108250.0,108240.0,0.1477777]
[1751237685939,0.61843924,108250.0,108240.0,1.17048456]
[1751237686138,0.10987424,108250.0,108240.0,1.78448456]
[1751237686343,0.25763824,108250.0,108240.0,1.58159113]
[1751237686537,0.22693824,108250.0,108240.0,1.58159113]
[1751237686743,0.07917424,108250.0,108240.0,1.58159113]
[1751237686947,0.08217424,108250.0,108240.0,1.58159113]
[1751237687147,0.22993824,108250.0,108240.0,1.58159113]
[1751237688239,0.23293824,108250.0,108240.0,1.58159113]
[1751237689246,0.22793824,108250.0,108240.0,1.58159113]
[1751237689548,0.22993824,108250.0,108240.0,1.3786977]
[1751237689846,0.26043824,108250.0,108240.0,1.51939113]
[1751237690244,0.26043824,108250.0,108240.0,1.48919113]
[1751237693551,0.26043824,108250.0,108240.0,1.51979113]
[1751237695851,0.11267424,108250.0,108240.0,1.72268456]
[1751237696049,0.08217424,108250.0,108240.0,1.72268456]
[1751237696451,0.19923824,108250.0,108240.0,1.72268456]
[1751237696853,0.19923824,108250.0,108240.0,1.51979113]
[1751237698052,0.05147424,108250.0,108240.0,1.72268456]
[1751237698453,0.05147424,108250.0,108240.0,1.75498456]
[1751237698655,0.003,108250.0,108240.0,0.97726456]
[1751237698951,0.01689429,108280.0,108270.0,0.1477367]
[1751237699151,0.21605638,108280.0,108270.0,1.16936356]
[1751237699351,0.24825638,108280.0,108270.0,1.16936356]
[1751237699554,0.08363689,108280.0,108270.0,1.16936356]
[1751237699753,0.0301,108280.0,108270.0,1.53016356]
[1751237699958,0.0301,108280.0,108270.0,1.62246356]
[1751237700159,0.0361,108280.0,108270.0,1.62246356]
[1751237700359,0.0361,108280.0,108270.0,1.2166767]
[1751237700657,0.1477367,108270.0,108260.0,0.68283395]
[1751237700958,0.1477367,108270.0,108260.0,1.50144738]
[1751237701161,0.2409367,108270.0,108260.0,1.50144738]
[1751237701662,0.44383013,108270.0,108260.0,0.93767775]
[1751237701854,0.44383013,108270.0,108260.0,0.63052735]
[1751237702049,0.82598774,108270.0,108260.0,0.63048735]
[1751237702250,0.82898774,108270.0,108260.0,0.63048735]
[1751237702460,0.82898774,108270.0,108260.0,0.01492735]
[1751237702659,0.83298774,108270.0,108260.0,0.61552]
[1751237703153,1.11997904,108270.0,108240.0,0.3608]
[1751237703360,0.1477776,108240.0,108230.0,0.01538548]
[1751237703557,0.71147103,108240.0,108230.0,0.16317678]
[1751237703860,0.2394776,108240.0,108230.0,0.16317678]
[1751237704056,0.2394776,108240.0,108230.0,0.36607021]
[1751237704652,0.2394776,108240.0,108230.0,0.98143021]
[1751237704852,0.2394776,108240.0,108230.0,0.98243021]
[1751237705753,0.2394776,108240.0,108230.0,1.01403021]
[1751237705952,0.2394776,108240.0,108230.0,1.06882657]
[1751237706153,0.2081776,108240.0,108230.0,1.06882657]
[1751237706756,0.2081776,108240.0,108230.0,1.08749947]
[1751237708965,0.2081776,108240.0,108230.0,0.88460604]
[1751237709164,0.2081776,108240.0,108230.0,1.08749947]
[1751237709558,0.2081776,108240.0,108230.0,0.88460604]
[1751237709760,0.2395776,108240.0,108230.0,0.85300604]
[1751237710161,0.2395776,108240.0,108230.0,0.77953678]
[1751237710362,0.2395776,108240.0,108230.0,0.83443167]
[1751237710566,0.44247103,108240.0,108230.0,0.61636]
[1751237711366,0.44247103,108240.0,108230.0,0.001]
[1751237711563,0.64536446,108240.0,108230.0,0.001]
[1751237711768,0.666739,108240.0,108230.0,0.001]
[1751237711972,0.46384557,108240.0,108230.0,0.001]
[1751237712268,0.4731504,108240.0,108230.0,0.001]
[1751237712569,0.8339504,108240.0,108230.0,0.001]
[1751237713568,0.9933104,108240.0,108230.0,0.001]
[1751237714071,0.82464557,108240.0,108230.0,0.1487913]
[1751237714969,0.62175214,108240.0,108230.0,0.1487913]
[1751237715166,0.26095214,108240.0,108230.0,0.1487913]
[1751237715366,0.26095214,108240.0,108230.0,0.35168473]
[1751237715561,0.2395776,108240.0,108230.0,0.38418473]
[1751237716470,0.2395776,108240.0,108230.0,0.1812913]
[1751237717377,0.80327103,108240.0,108230.0,0.001]
[1751237718270,0.6003776,108240.0,108230.0,0.001]
[1751237718573,0.80327103,108240.0,108230.0,0.001]
[1751237719871,0.19932804,108240.0,108230.0,0.96620473]
[1751237720071,0.16902804,108240.0,108230.0,1.0382604]
[1751237720272,0.16902804,108240.0,108230.0,1.3990604]
[1751237720669,0.02125044,108240.0,108230.0,0.7845404]
[1751237720976,0.26843262,108250.0,108240.0,0.1477776]
[1751237721176,0.28967994,108250.0,108240.0,0.2408776]
[1751237721378,0.28967994,108250.0,108240.0,0.44377103]
[1751237721977,0.25473604,108250.0,108240.0,0.80457103]
[1751237722172,0.22443604,108250.0,108240.0,0.80457103]
[1751237722381,0.20318872,108250.0,108240.0,0.80457103]
[1751237722978,0.01847472,108250.0,108240.0,0.80457103]
[1751237723283,0.002,108250.0,108240.0,1.02279826]
[1751237723780,0.002,108250.0,108240.0,0.8704868]
[1751237723781,0.149764,108250.0,108240.0,0.8704868]
[1751237723982,0.150764,108250.0,108240.0,0.8704868]
[1751237725298,0.150764,108250.0,108240.0,0.67190629]
[1751237726895,0.150764,108250.0,108240.0,0.24930629]
[1751237727100,0.246764,108250.0,108240.0,0.24930629]
[1751237727798,0.246764,108250.0,108240.0,0.07022869]
[1751237727997,0.51667031,108250.0,108240.0,0.68422869]
[1751237728197,0.51667031,108250.0,108240.0,0.0153338]
[1751237728397,0.87747031,108250.0,108240.0,0.0153338]
[1751237729601,0.1477776,108240.0,108230.0,0.89045379]
[1751237729796,0.2120776,108240.0,108230.0,0.89045379]
[1751237729991,0.2120776,108240.0,108230.0,0.27657379]
[1751237730188,0.465553,108240.0,108230.0,0.89033379]
[1751237730604,0.465553,108240.0,108230.0,0.27657379]
[1751237730901,0.465553,108240.0,108230.0,0.89033379]
[1751237731104,0.465553,108240.0,108230.0,0.89133379]
[1751237731294,0.2120776,108240.0,108230.0,0.89133379]
[1751237732603,0.2120776,108240.0,108230.0,0.27757379]
[1751237732795,0.2120776,108240.0,108230.0,0.89129379]
[1751237733196,0.5728776,108240.0,108230.0,0.85434619]
[1751237733901,0.5728776,108240.0,108230.0,0.81727859]
[1751237734504,0.5728776,108240.0,108230.0,0.20367859]
[1751237734697,0.826353,108240.0,108230.0,0.61444]
[1751237735296,0.6785754,108240.0,108220.0,0.37996299]
[1751237735602,0.6014912,108230.0,108220.0,0.88670209]
[1751237735896,0.6014912,108230.0,108220.0,0.27326209]
[1751237736095,0.86407128,108230.0,108220.0,0.81697289]
[1751237736296,0.8549666,108230.0,108220.0,0.81697289]
[1751237736904,0.6014912,108230.0,108220.0,0.81697289]
[1751237737705,0.8549666,108230.0,108220.0,0.66905889]
[1751237739206,0.86425316,108230.0,108220.0,0.66905889]
[1751237739408,0.8549666,108230.0,108220.0,0.66905889]
[1751237740100,0.8549666,108230.0,108220.0,0.81686379]
[1751237740704,0.8549666,108230.0,108220.0,0.81786379]
[1751237740905,0.6014912,108230.0,108220.0,0.81986379]
[1751237741306,0.6014912,108230.0,108220.0,0.85156379]
[1751237741794,0.61812085,108230.0,108220.0,0.67205889]
[1751237742707,0.61812085,108230.0,108220.0,0.7649689]
[1751237742910,0.61812085,108230.0,108220.0,0.617164]
[1751237744012,0.82106446,108230.0,108220.0,0.617164]
[1751237745206,0.82106446,108230.0,108220.0,0.003924]
[1751237746709,0.83041954,108230.0,108220.0,0.003924]
[1751237747108,0.62747593,108230.0,108220.0,0.003924]
[1751237747304,0.92625782,108230.0,108220.0,0.003924]
[1751237747810,1.46438994,108230.0,108220.0,0.003924]
[1751237748003,1.35354744,108230.0,108200.0,1.30206229]
[1751237748204,0.1478186,108210.0,108200.0,1.30206229]
[1751237749110,0.1478186,108210.0,108200.0,1.5060059]
[1751237750205,0.1478186,108210.0,108200.0,1.30306229]
[1751237750405,0.1478186,108210.0,108200.0,1.5060059]
[1751237751009,0.76100999,108220.0,108210.0,0.1478186]
[1751237751010,0.23827348,108220.0,108210.0,0.1478186]
[1751237751208,0.23827348,108220.0,108210.0,0.77346221]
[1751237752400,0.23827348,108220.0,108210.0,1.38582221]
[1751237754212,0.23827348,108220.0,108210.0,0.67626]
[1751237754706,0.44121709,108220.0,108210.0,0.67626]
[1751237755410,0.80201709,108220.0,108210.0,0.67626]
[1751237755612,0.80201709,108220.0,108210.0,0.002]
[1751237755807,0.89661709,108220.0,108210.0,0.61412]
[1751237756311,0.89661709,108220.0,108210.0,0.61604]
[1751237757519,0.89661709,108220.0,108210.0,0.7638586]
[1751237759316,0.89661709,108220.0,108210.0,0.61604]
[1751237759614,0.89661709,108220.0,108210.0,0.7638586]
[1751237759814,0.89661709,108220.0,108210.0,0.61604]
[1751237760615,0.89661709,108220.0,108210.0,0.61572]
[1751237762726,0.89661709,108220.0,108210.0,0.6156]
[1751237763115,0.89661709,108220.0,108210.0,0.004]
[1751237763715,1.05361709,108220.0,108210.0,0.004]
[1751237763913,0.1478323,108200.0,108190.0,0.10519352]
[1751237764120,0.35077591,108200.0,108190.0,0.64320426]
[1751237764332,0.44747591,108200.0,108190.0,0.00092426]
[1751237764916,0.44747591,108200.0,108190.0,0.00992426]
[1751237764917,0.44847591,108200.0,108190.0,0.00992426]
[1751237765725,0.44947591,108200.0,108190.0,0.00992426]
[1751237766711,0.44947591,108200.0,108190.0,0.00092426]
[1751237766917,0.81027591,108200.0,108190.0,0.00092426]
[1751237768021,0.6073323,108200.0,108190.0,0.05585912]
[1751237768225,0.81027591,108200.0,108190.0,0.05585912]
[1751237769126,0.6073323,108200.0,108190.0,0.05585912]
[1751237769325,0.81027591,108200.0,108190.0,0.05585912]
[1751237769921,0.6073323,108200.0,108190.0,0.05585912]
[1751237770121,0.81027591,108200.0,108190.0,0.05585912]
[1751237770316,0.77857591,108200.0,108190.0,0.05585912]
[1751237770524,0.80002945,108200.0,108190.0,0.06682426]
[1751237771226,0.76712945,108200.0,108190.0,0.06682426]
[1751237771528,0.76712945,108200.0,108190.0,0.09972426]
[1751237772028,0.76712945,108200.0,108190.0,0.06682426]
[1751237772325,0.79832945,108200.0,108190.0,0.06682426]
[1751237772521,0.59538584,108200.0,108190.0,0.06682426]
[1751237772720,0.79832945,108200.0,108190.0,0.06682426]
[1751237774723,0.77687591,108200.0,108190.0,0.06682426]
[1751237775222,0.77687591,108200.0,108190.0,0.03422426]
[1751237775628,0.77687591,108200.0,108190.0,0.00092426]
[1751237779630,0.5739323,108200.0,108190.0,0.00092426]
[1751237779831,0.77687591,108200.0,108190.0,0.00092426]
[1751237782830,0.5739323,108200.0,108190.0,0.00092426]
[1751237783030,0.77687591,108200.0,108190.0,0.00092426]
[1751237785632,0.1478459,108190.0,108180.0,0.77640236]
[1751237785930,0.35078951,108190.0,108180.0,0.77640236]
[1751237786131,0.35078951,108190.0,108180.0,0.62854426]
[1751237786431,0.41408951,108190.0,108180.0,0.62854426]
[1751237786734,0.2111459,108190.0,108180.0,0.62854426]
[1751237786932,0.41408951,108190.0,108180.0,0.62854426]
[1751237787132,0.41408951,108190.0,108180.0,0.77640386]
[1751237788132,0.41408951,108190.0,108180.0,0.62854426]
[1751237789036,0.2111459,108190.0,108180.0,0.77640386]
[1751237789236,0.41408951,108190.0,108180.0,0.77640386]
[1751237789433,0.41408951,108190.0,108180.0,0.80850386]
[1751237789833,0.2111459,108190.0,108180.0,0.80850386]
[1751237790033,0.1478459,108190.0,108180.0,0.80850386]
[1751237790737,0.16925321,108190.0,108180.0,0.86339243]
[1751237791135,0.16925321,108190.0,108180.0,0.80850386]
[1751237792531,0.16925321,108190.0,108180.0,0.66064426]
[1751237792532,0.37219682,108190.0,108180.0,0.66064426]
[1751237792739,0.40499682,108190.0,108180.0,0.66064426]
[1751237793039,0.20205321,108190.0,108180.0,0.66064426]
[1751237793235,0.40499682,108190.0,108180.0,0.66064426]
[1751237793434,0.40499682,108190.0,108180.0,0.80850386]
[1751237793630,0.20205321,108190.0,108180.0,0.80850386]
[1751237793833,0.20205321,108190.0,108180.0,0.66064426]
[1751237794030,0.20205321,108190.0,108180.0,0.80850386]
[1751237794235,0.40499682,108190.0,108180.0,0.80850386]
[1751237794431,0.40499682,108190.0,108180.0,0.66064426]
[1751237794832,0.20205321,108190.0,108180.0,0.66064426]
[1751237795031,0.40499682,108190.0,108180.0,0.66064426]
[1751237795532,0.1806459,108190.0,108180.0,0.71553283]
[1751237796341,0.1806459,108190.0,108180.0,0.86339243]
[1751237797341,0.39269563,108190.0,108180.0,0.86339243]
[1751237797746,0.38358951,108190.0,108180.0,0.86339243]
[1751237799443,0.38358951,108190.0,108180.0,0.71553283]
[1751237799846,0.1806459,108190.0,108180.0,0.71553283]
[1751237803545,0.1806459,108190.0,108180.0,0.66064426]
[1751237805449,0.1806459,108190.0,108180.0,0.73382902]
[1751237806450,0.41498951,108190.0,108180.0,0.73382902]
[1751237807150,0.41498951,108190.0,108180.0,0.70172902]
[1751237809347,0.41498951,108190.0,108180.0,0.62854426]
[1751237809650,0.43621362,108190.0,108180.0,0.66345433]
[1751237809849,0.46741362,108190.0,108180.0,0.66345433]
[1751237811451,0.1478596,108180.0,108170.0,0.18318145]
[1751237811655,0.41570321,108180.0,108170.0,0.75936145]
[1751237812055,0.41570321,108180.0,108170.0,0.74386476]
[1751237812651,0.41570321,108180.0,108170.0,0.13658476]
[1751237812858,0.77650321,108180.0,108170.0,0.07418476]
[1751237813151,0.77650321,108180.0,108170.0,0.05809165]
[1751237813358,0.97944682,108180.0,108170.0,0.05809165]
[1751237813653,1.00066204,108180.0,108170.0,0.05809165]
[1751237814155,0.97944682,108180.0,108170.0,0.05809165]
[1751237815952,1.34024682,108180.0,108170.0,0.05809165]
[1751237816847,0.1478733,108170.0,108160.0,0.07410927]
[1751237817049,0.82515221,108170.0,108160.0,0.00092451]
[1751237817250,0.97975221,108170.0,108160.0,0.00092451]
[1751237818353,0.1478869,108160.0,108150.0,0.02810927]
[1751237818552,0.77613051,108160.0,108150.0,0.02810927]
[1751237819856,0.77613051,108160.0,108150.0,0.03110927]
[1751237820756,0.77613051,108160.0,108150.0,0.003]
[1751237821162,0.85040251,108160.0,108150.0,0.003]
[1751237821857,0.85971149,108160.0,108150.0,0.003]
[1751237822265,0.85971149,108160.0,108150.0,0.005]
[1751237822658,0.85971149,108160.0,108150.0,0.002]
[1751237822861,0.5829589,108160.0,108150.0,0.35284421]
[1751237823062,0.5086869,108160.0,108150.0,0.44744421]
[1751237823658,0.5086869,108160.0,108150.0,0.44544421]
[1751237823864,0.5086869,108160.0,108150.0,0.44644421]
[1751237824163,0.1478869,108160.0,108150.0,0.44644421]
[1751237824368,0.1478869,108160.0,108150.0,1.05380421]
[1751237826865,0.1478869,108160.0,108150.0,0.8508606]
[1751237827067,0.1478869,108160.0,108150.0,1.05380421]
[1751237827668,0.71163051,108160.0,108150.0,0.67216]
[1751237827871,0.77513051,108160.0,108150.0,0.67216]
[1751237829770,0.77513051,108160.0,108150.0,0.8200606]
[1751237830272,0.5721869,108160.0,108150.0,0.8200606]
[1751237830461,0.41433051,108160.0,108150.0,0.8505606]
[1751237830868,0.1478869,108160.0,108150.0,1.05350421]
[1751237832673,0.2754352,108170.0,108160.0,0.1478869]
[1751237832868,0.2754352,108170.0,108160.0,0.41523051]
[1751237835072,0.2764352,108170.0,108160.0,0.41523051]
[1751237835270,0.2764352,108170.0,108160.0,0.2122869]
[1751237840278,0.2764352,108170.0,108160.0,0.22657938]
[1751237840778,0.2764352,108170.0,108160.0,0.2122869]
[1751237841276,0.2764352,108170.0,108160.0,0.22658564]
[1751237842478,0.2764352,108170.0,108160.0,0.07869874]
[1751237842776,0.54307881,108170.0,108160.0,0.07869874]
[1751237842980,0.54307881,108170.0,108160.0,0.01429874]
[1751237843679,0.3401352,108170.0,108160.0,0.01429874]
[1751237843875,0.54307881,108170.0,108160.0,0.01429874]
[1751237844768,0.3401352,108170.0,108160.0,0.01429874]
[1751237844969,0.54307881,108170.0,108160.0,0.01429874]
[1751237845168,0.56471013,108170.0,108160.0,0.01429874]
[1751237845376,0.36176652,108170.0,108160.0,0.01429874]
[1751237845577,0.56471013,108170.0,108160.0,0.01429874]
[1751237846277,0.56471013,108170.0,108160.0,0.06924175]
[1751237846485,0.54307881,108170.0,108160.0,0.06924175]
[1751237846780,0.90387881,108170.0,108160.0,0.06924175]
[1751237846983,0.92551533,108170.0,108160.0,0.01429874]
[1751237848690,0.1478869,108160.0,108150.0,0.80840341]
[1751237848875,0.80363051,108160.0,108150.0,0.82273858]
[1751237849279,0.6006869,108160.0,108150.0,0.82273858]
[1751237849579,0.80363051,108160.0,108150.0,0.82273868]
[1751237850184,0.80363051,108160.0,108150.0,0.82373868]
[1751237850687,0.80363051,108160.0,108150.0,0.82473868]
[1751237851488,0.6006869,108160.0,108150.0,0.82473868]
[1751237851678,0.2398869,108160.0,108150.0,1.02768229]
[1751237851882,0.2094869,108160.0,108150.0,1.02768229]
[1751237852077,0.2094869,108160.0,108150.0,1.10513581]
[1751237852281,0.1478869,108160.0,108150.0,1.66887942]
[1751237852490,0.0166353,108170.0,108160.0,0.1478869]
[1751237852791,0.1645086,108170.0,108160.0,0.51364935]
[1751237852983,0.0166353,108170.0,108160.0,0.87444935]
[1751237853688,0.1645086,108170.0,108160.0,1.04594716]
[1751237854389,0.1645086,108170.0,108160.0,1.02774117]
[1751237854889,0.1645086,108170.0,108160.0,0.82479756]
[1751237855086,0.1645086,108170.0,108160.0,1.02774117]
[1751237856086,0.1645086,108170.0,108160.0,0.82479756]
[1751237856488,0.1958086,108170.0,108160.0,0.82479756]
[1751237858591,0.1958086,108170.0,108160.0,1.02774117]
[1751237859189,0.1968086,108170.0,108160.0,1.02774117]
[1751237860895,0.1968086,108170.0,108160.0,0.82479756]
[1751237861093,0.1968086,108170.0,108160.0,1.02774117]
[1751237861795,0.1968086,108170.0,108160.0,1.013406]
[1751237867999,0.1968086,108170.0,108160.0,0.81046239]
[1751237868295,0.1968086,108170.0,108160.0,1.013406]
[1751237868500,0.1968086,108170.0,108160.0,0.81046239]
[1751237868694,0.1968086,108170.0,108160.0,1.013406]
[1751237869799,0.1655086,108170.0,108160.0,1.013406]
[1751237872901,0.1655086,108170.0,108160.0,0.860086]
[1751237873101,0.1655086,108170.0,108160.0,1.463726]
[1751237875703,0.18707235,108170.0,108160.0,1.40867051]
[1751237875906,0.21967235,108170.0,108160.0,1.40867051]
[1751237878595,0.21967235,108170.0,108160.0,1.2057269]
[1751237878801,0.21967235,108170.0,108160.0,1.40867051]
[1751237881104,0.1981086,108170.0,108160.0,1.48193199]
[1751237883104,0.1655086,108170.0,108160.0,1.48193199]
[1751237883301,0.0176353,108170.0,108160.0,1.40867051]
[1751237883494,0.0176353,108170.0,108160.0,1.48193199]
[1751237885507,0.0176353,108170.0,108160.0,1.50015146]
[1751237886405,0.0176353,108170.0,108160.0,1.40867051]
[1751237887403,0.0176353,108170.0,108160.0,1.50015146]
[1751237889204,0.0176353,108170.0,108160.0,1.40867051]
[1751237894206,0.0176353,108170.0,108160.0,1.48202268]
[1751237894401,0.0176353,108170.0,108160.0,1.40867051]
[1751237895309,0.0176353,108170.0,108160.0,1.48202289]
[1751237896509,0.1655086,108170.0,108160.0,1.27907928]
[1751237896702,0.1655086,108170.0,108160.0,1.48202289]
[1751237897309,0.36845221,108170.0,108160.0,1.33583928]
[1751237897505,0.2609086,108170.0,108160.0,1.33583928]
[1751237897809,0.2609086,108170.0,108160.0,1.53878289]
[1751237899606,0.2609086,108170.0,108160.0,1.57088289]
[1751237899910,0.1130353,108170.0,108160.0,1.57088289]
[1751237900211,0.0811353,108170.0,108160.0,1.57088289]
[1751237900409,0.0811353,108170.0,108160.0,1.60218289]
[1751237900611,0.0176353,108170.0,108160.0,1.60218289]
[1751237902208,0.1655086,108170.0,108160.0,1.60218289]
[1751237902407,0.2284086,108170.0,108160.0,1.52883051]
[1751237903312,0.0805353,108170.0,108160.0,1.52883051]
[1751237904216,0.2284086,108170.0,108160.0,1.52883051]
[1751237904513,0.0805353,108170.0,108160.0,1.52883051]
[1751237908513,0.0176353,108170.0,108160.0,1.52883051]
[1751237909714,0.0176353,108170.0,108160.0,1.60218289]
[1751237910622,0.0484353,108170.0,108160.0,1.60218289]
[1751237910823,0.2286088,108170.0,108160.0,0.96908289]
[1751237911121,0.2286088,108170.0,108160.0,1.53766289]
[1751237911312,0.2286088,108170.0,108160.0,0.57618289]
[1751237911718,0.2286088,108170.0,108160.0,1.17678289]
[1751237912216,0.2286088,108170.0,108160.0,1.53758289]
[1751237912415,0.2286088,108170.0,108160.0,1.33463928]
[1751237912723,0.2286088,108170.0,108160.0,1.53758289]